bitfinex-derivatives/quotes_ETHF0:USTF0_20250730
["timestamp","ask_amount","ask_price","bid_price","bid_amount"]
[1753881682781,3.7244,3765.8,3765.7,1.4929]
[1753881683180,4.626688,3766.1,3765.2,3.7354]
[1753881683381,0.53107,3766.0,3765.7,0.8869]
[1753881683578,2.77227,3766.0,3765.8,3.7354]
[1753881683788,1.3795,3765.9,3765.8,3.7354]
[1753881683987,0.53112,3765.7,3765.5,3.7354]
[1753881684187,3.764988,3766.1,3765.0,3.2078]
[1753881684188,3.7244,3765.4,3765.2,2.02408]
[1753881684382,3.7244,3765.2,3765.0,5.0946]
[1753881684685,3.7244,3765.2,3765.0,3.2078]
[1753881684686,3.7244,3765.1,3765.0,3.2078]
[1753881684993,3.7244,3765.1,3765.0,4.7007]
[1753881685290,7.489388,3765.1,3765.0,4.7007]
[1753881685689,7.489388,3765.1,3765.0,5.5876]
[1753881686185,3.764988,3765.1,3765.0,6.9432]
[1753881687589,2.202388,3765.1,3765.0,6.9432]
[1753881690091,4.20757,3766.1,3766.0,0.53107]
[1753881690685,0.53109,3765.9,3765.8,0.53109]
[1753881690992,40.8,3766.3,3765.6,0.53113]
[1753881690993,0.53112,3765.7,3765.6,0.53113]
[1753881691384,42.463874,3766.3,3765.1,1.32801]
[1753881691385,0.53118,3765.3,3765.1,0.5312]
[1753881691789,0.5312,3765.1,3765.0,3.2078]
[1753881691984,4.2077,3765.1,3765.0,3.2078]
[1753881692294,7.972688,3765.1,3765.0,3.2078]
[1753881692994,5.117088,3765.1,3765.0,6.1515]
[1753881693495,6.005788,3765.1,3765.0,5.5412]
[1753881693687,7.441488,3765.1,3765.0,5.5412]
[1753881694289,7.441488,3765.1,3765.0,3.2078]
[1753881694602,7.441488,3765.1,3765.0,1.628512]
[1753881694800,12.75350244,3765.1,3765.0,1.628512]
[1753881694984,12.75350244,3765.1,3764.1,1.97083]
[1753881695189,12.75350244,3765.1,3763.9,1.14166]
[1753881695190,1.32814,3764.7,3763.9,1.14166]
[1753881695400,3.6765,3763.9,3763.8,0.1966072]
[1753881696400,1.3521,3763.9,3763.8,0.7279872]
[1753881696698,2.2408,3764.0,3763.9,3.6228]
[1753881696893,2.77216,3764.0,3763.9,3.6228]
[1753881697094,19.005,3764.6,3763.9,4.15416]
[1753881697290,0.53133,3764.2,3764.0,0.53134]
[1753881697496,43.0408,3764.5,3764.4,0.5313]
[1753881697497,40.8,3764.5,3764.4,0.5313]
[1753881697695,40.8,3764.5,3764.3,1.4395]
[1753881697696,0.53122,3765.0,3764.2,1.32829]
[1753881698006,0.53123,3764.9,3764.6,4.15407]
[1753881698298,0.53124,3764.8,3764.7,3.6228]
[1753881698598,0.53124,3764.8,3764.5,0.53128]
[1753881698599,0.53125,3764.7,3764.4,0.53128]
[1753881698900,0.53125,3764.7,3764.6,1.4395]
[1753881699096,2.77205,3764.7,3764.6,1.4395]
[1753881699296,1.3521,3764.7,3764.6,2.3334]
[1753881699503,40.8,3764.9,3764.8,3.6228]
[1753881699800,3.764988,3765.1,3764.9,0.53123]
[1753881700107,3.764988,3765.1,3765.0,3.6228]
[1753881700399,1.3521,3765.0,3764.9,0.53121]
[1753881700601,44.564988,3765.1,3765.0,2.1833]
[1753881700797,3.764988,3765.1,3765.0,2.1833]
[1753881701101,3.764988,3765.1,3765.0,3.6228]
[1753881702902,4.61771627,3765.1,3765.0,3.6228]
[1753881703400,6.85851627,3765.1,3765.0,2.3334]
[1753881703595,8.29421627,3765.1,3765.0,1.4395]
[1753881703997,6.85851627,3765.1,3765.0,2.3334]
[1753881705604,3.764988,3765.1,3765.0,3.6228]
[1753881710910,0.53121,3765.0,3764.9,0.53122]
[1753881711206,3.6765,3765.0,3764.9,1.97072]
[1753881711504,3.6765,3765.0,3764.9,1.4395]
[1753881711908,0.53123,3764.9,3764.8,0.53123]
[1753881712107,3.764988,3765.1,3764.5,1.4395]
[1753881712108,1.4357,3764.6,3764.5,1.4395]
[1753881712302,0.8887,3764.8,3764.7,1.42515]
[1753881712513,2.2408,3764.8,3764.7,4.15405]
[1753881713101,3.764988,3765.1,3765.0,4.15401]
[1753881715007,3.764988,3765.1,3765.0,9.15401]
[1753881716101,3.6765,3765.9,3765.8,0.5311]
[1753881716301,3.98967954,3765.9,3765.8,4.1539]
[1753881716806,2.2408,3765.8,3765.7,0.53111]
[1753881717001,4.20761,3765.7,3765.6,3.6228]
[1753881717199,4.20761,3765.7,3765.0,1.32803]
[1753881717200,0.53115,3765.5,3765.4,0.53115]
[1753881717497,0.53115,3765.5,3765.0,1.32803]
[1753881717498,0.53104,3766.2,3766.0,0.53106]
[1753881717707,1.4011,3765.7,3765.1,0.5312]
[1753881717906,3.8965,3765.2,3765.1,2.8339]
[1753881718106,3.8965,3765.2,3764.4,1.32824]
[1753881718107,3.8965,3764.8,3764.7,2.83395]
[1753881718301,3.8965,3764.8,3764.7,0.8585]
[1753881718609,0.53128,3764.5,3764.4,1.86869]
[1753881718808,3.8965,3764.5,3764.4,4.17139]
[1753881719111,3.8965,3764.5,3763.9,3.6401]
[1753881719302,1.93244,3764.2,3763.9,0.53136]
[1753881719497,1.32812,3764.8,3764.3,0.5313]
[1753881719498,2.9616,3764.8,3764.3,0.5313]
[1753881719698,3.8965,3764.6,3764.5,3.6401]
[1753881720206,4.296198,3765.1,3764.7,0.53124]
[1753881720406,4.296198,3765.1,3764.1,1.32834]
[1753881720407,2.336,3765.4,3764.9,1.3374]
[1753881720703,0.95232452,3765.8,3765.6,4.17123]
[1753881721012,0.53103,3766.3,3766.1,0.53105]
[1753881721206,0.53102,3766.4,3766.2,3.6401]
[1753881721508,1.4011,3766.4,3766.3,3.6401]
[1753881721706,0.95232452,3767.1,3765.4,2.991774]
[1753881721707,1.4011,3766.8,3766.6,0.53099]
[1753881721906,2.4954,3766.6,3766.3,4.17112]
[1753881722106,3.8965,3766.5,3766.4,3.6401]
[1753881722411,2.9616,3766.9,3766.4,3.6401]
[1753881722605,0.531,3766.6,3766.5,3.6401]
[1753881722810,4.42747,3766.7,3766.6,2.3027]
[1753881723111,1.4011,3766.3,3766.2,4.17113]
[1753881723316,1.4011,3766.7,3766.3,3.6401]
[1753881723512,3.8965,3767.0,3766.3,3.6401]
[1753881723709,0.53101,3766.4,3766.3,3.6401]
[1753881723912,2.9616,3766.7,3765.7,20.24079]
[1753881724105,2.9616,3766.7,3766.6,3.6401]
[1753881724106,3.49258,3766.7,3766.6,3.6401]
[1753881724411,0.53098,3766.7,3766.6,3.6401]
[1753881724607,4.42748,3766.7,3766.6,3.6401]
[1753881725409,8.192468,3766.7,3766.6,3.6401]
[1753881725606,5.230858,3766.7,3766.6,3.6401]
[1753881725813,3.764988,3766.7,3766.6,2.7816]
[1753881726019,3.764988,3766.7,3766.6,4.17109]
[1753881727109,3.764988,3766.7,3764.2,13.54411014]
[1753881727311,0.53104,3766.3,3766.2,3.6401]
[1753881727507,4.42752,3766.4,3766.3,2.3027]
[1753881727711,3.764988,3766.7,3766.6,3.6401]
[1753881728417,0.53101,3766.5,3766.2,0.53103]
[1753881728616,0.53102,3766.4,3766.3,1.4442]
[1753881728813,3.49261,3766.5,3766.3,3.6401]
[1753881729115,3.49261,3766.5,3766.4,3.6401]
[1753881729704,1.93211,3766.5,3766.4,3.6401]
[1753881730014,0.53101,3766.5,3766.4,3.6401]
[1753881730212,0.53101,3766.5,3765.6,18.884]
[1753881730213,0.53106,3766.1,3766.0,2.7816]
[1753881730715,0.53106,3766.1,3765.6,18.884]
[1753881730716,0.53104,3766.3,3766.2,3.6401]
[1753881732216,4.42754,3766.3,3766.2,3.6401]
[1753881732518,0.53102,3766.4,3766.3,0.8585]
[1753881732819,4.295998,3766.5,3766.4,3.6401]
[1753881733015,4.4738651,3766.5,3766.4,3.6401]
[1753881733414,4.4738651,3766.5,3765.6,20.21182]
[1753881733415,0.53107,3766.1,3765.9,0.53108]
[1753881733714,1.5605,3766.4,3765.9,4.96782]
[1753881733918,5.166088,3766.5,3766.3,1.38952]
[1753881734121,3.764988,3766.5,3766.4,3.6401]
[1753881735716,7.661488,3766.5,3766.4,2.1959]
[1753881735913,7.661488,3766.5,3766.4,3.6401]
[1753881736322,1.32755,3766.4,3765.5,3.6401]
[1753881736623,0.53112,3765.7,3765.6,27.82213995]
[1753881737915,0.5312,3765.1,3765.0,31.879]
[1753881738321,0.5312,3765.1,3765.0,33.3232]
[1753881738522,0.5312,3765.1,3765.0,35.5191]
[1753881739320,4.4277,3765.1,3765.0,35.5191]
[1753881739519,0.53123,3764.9,3764.8,18.872]
[1753881739719,2.9616,3765.6,3764.9,3.6401]
[1753881739925,0.53117,3765.3,3765.0,0.53121]
[1753881740119,3.8965,3766.0,3764.9,1.51279068]
[1753881740319,0.53122,3765.0,3764.8,19.40324]
[1753881740618,4.42772,3765.0,3764.9,3.6401]
[1753881740816,4.42771,3765.0,3764.9,18.871]
[1753881741418,3.8965,3765.0,3764.9,22.5111]
[1753881741625,0.53119,3765.2,3765.0,3.6401]
[1753881741818,3.8965,3765.4,3765.0,2.1959]
[1753881742026,0.53121,3765.0,3764.9,18.871]
[1753881742225,0.5312,3765.2,3765.0,0.53121]
[1753881742422,3.8965,3765.3,3764.9,18.871]
[1753881742622,6.726588,3765.5,3765.0,3.6401]
[1753881742829,6.726588,3765.5,3765.4,0.53116]
[1753881743027,3.764988,3765.5,3765.4,4.17126]
[1753881743232,3.764988,3765.5,3765.4,3.6401]
[1753881743826,4.296138,3765.5,3765.3,0.53116]
[1753881744133,2.9616,3765.4,3765.3,4.17127]
[1753881744326,3.764988,3765.5,3765.3,3.6401]
[1753881744534,3.764988,3765.5,3765.4,4.17126]
[1753881747432,0.53107,3766.1,3765.9,0.53107]
[1753881747633,3.6357,3766.0,3765.9,4.18187]
[1753881748035,0.53109,3765.9,3765.7,21.71561]
[1753881748240,3.6357,3765.8,3765.7,21.71561]
[1753881748541,3.6357,3765.8,3765.6,18.872]
[1753881748736,1.32774,3765.9,3765.6,19.40312]
[1753881748737,3.6357,3765.7,3765.6,19.40312]
[1753881749035,3.6357,3765.7,3765.6,18.872]
[1753881749237,3.6357,3765.7,3765.6,19.40313]
[1753881749439,3.6357,3765.7,3765.6,23.05393]
[1753881749835,3.6357,3765.7,3765.6,18.872]
[1753881750334,0.53114,3765.5,3765.4,18.872]
[1753881750535,2.7681,3765.3,3765.2,0.53118]
[1753881750841,2.7681,3765.3,3765.2,23.05398]
[1753881751035,3.6357,3765.3,3765.2,23.05398]
[1753881751534,2.327,3765.3,3765.2,21.71568]
[1753881751841,3.764988,3765.7,3765.6,4.18193]
[1753881752031,3.764988,3765.7,3765.6,3.6508]
[1753881752343,3.6357,3765.5,3765.4,0.53115]
[1753881752535,0.8676,3765.0,3764.5,0.902]
[1753881752734,2.7681,3764.5,3764.4,18.871]
[1753881753033,3.6357,3764.5,3764.4,18.871]
[1753881753446,3.62826715,3764.5,3764.4,18.871]
[1753881755130,2.327,3764.5,3764.4,18.871]
[1753881755438,7.400688,3764.5,3764.4,18.871]
[1753881757937,2.1763,3764.4,3763.9,31.869]
[1753881758140,6.0361,3764.0,3763.9,31.869]
[1753881758439,6.0361,3764.0,3763.9,51.644]
[1753881758635,0.8676,3763.9,3763.8,0.1966072]
[1753881758836,6.0361,3763.9,3763.8,0.1966072]
[1753881759738,6.0361,3764.2,3764.1,2.4303]
[1753881759952,6.0361,3764.2,3764.1,5.1791]
[1753881760133,2.4004,3764.2,3764.1,6.0811]
[1753881760332,7.474088,3764.2,3764.1,6.0811]
[1753881760538,9.801088,3764.2,3764.1,6.0811]
[1753881762042,3.764988,3764.2,3764.1,6.0811]
[1753881762242,3.764988,3764.2,3764.1,24.9561]
[1753881762751,8.341688,3764.2,3764.1,21.2298]
[1753881762943,8.341688,3764.2,3764.1,18.874]
[1753881763249,9.801088,3764.2,3764.1,18.874]
[1753881763665,9.801088,3764.2,3764.1,19.452]
[1753881764161,9.801088,3764.2,3764.1,18.874]
[1753881764559,6.0361,3764.1,3764.0,6.61244]
[1753881764755,3.764988,3764.2,3764.0,2.96164]
[1753881764955,3.764988,3764.2,3764.1,6.0811]
[1753881765355,3.764988,3764.2,3764.1,3.6508]
[1753881765654,3.6357,3764.1,3764.0,0.53134]
[1753881765861,0.53135,3764.1,3763.9,0.53136]
[1753881766056,0.53135,3764.1,3764.0,18.874]
[1753881766458,4.16705,3764.1,3764.0,18.874]
[1753881766853,3.6357,3764.1,3764.0,18.874]
[1753881767063,3.764988,3764.2,3764.1,4.18214]
[1753881767760,0.8676,3764.1,3764.0,0.53135]
[1753881767962,3.6357,3764.1,3764.0,19.40535]
[1753881768164,3.6357,3764.1,3764.0,23.05615]
[1753881768361,3.6357,3764.1,3764.0,22.5248]
[1753881769360,3.6357,3763.9,3763.8,3.0404772]
[1753881769563,3.2039471,3763.9,3763.8,0.1966072]
[1753881769763,3.2039471,3763.9,3763.8,19.0706072]
[1753881769969,3.2039471,3763.9,3763.8,0.1966072]
[1753881770366,6.9689351,3763.9,3763.8,0.1966072]
[1753881770562,9.3693351,3763.9,3763.8,0.1966072]
[1753881772571,6.0361,3762.8,3762.7,6.0811]
[1753881772867,1.32847,3763.8,3762.3,3.6508]
[1753881772868,3.6357,3762.4,3762.3,3.6508]
[1753881773069,3.03110702,3762.4,3762.3,3.6508]
[1753881773268,1.3087,3762.7,3762.3,3.6508]
[1753881773567,2.1763,3762.7,3762.6,3.6508]
[1753881774166,41.3315,3763.0,3762.6,4.18234]
[1753881774468,2.1763,3762.8,3762.3,2.2403]
[1753881774667,0.53152,3762.9,3762.2,18.89360589]
[1753881774861,0.53152,3762.9,3762.6,0.53154]
[1753881775061,3.6357,3762.8,3762.6,1.94204]
[1753881775262,40.8,3763.0,3762.9,0.53151]
[1753881775467,1.5139764,3763.8,3763.3,3.6508]
[1753881775468,0.53143,3763.5,3763.3,3.6508]
[1753881775762,0.53143,3763.5,3762.6,1.5139764]
[1753881775763,2.1763,3763.5,3763.4,0.53144]
[1753881775964,1.4594,3763.7,3763.6,0.53141]
[1753881776169,2.1763,3763.7,3763.6,1.94191]
[1753881776367,2.1763,3763.7,3763.6,4.18221]
[1753881776861,2.1763,3763.7,3763.6,3.6508]
[1753881777169,2.65602,3765.2,3763.6,3.6508]
[1753881777170,0.53131,3764.3,3764.1,0.53133]
[1753881777366,0.53126,3764.7,3764.4,0.53129]
[1753881777664,2.2357,3764.5,3764.4,2.83819]
[1753881777860,3.664,3764.5,3764.4,1.99109]
[1753881778062,1.324,3764.5,3764.4,4.11029]
[1753881778367,3.664,3764.5,3764.4,3.579]
[1753881778560,40.8,3764.6,3763.4,1.3286]
[1753881778765,0.53134,3764.2,3764.0,0.53134]
[1753881778965,3.664,3764.1,3764.0,0.53134]
[1753881779366,3.664,3764.1,3764.0,1.99114]
[1753881779566,3.23225914,3764.1,3764.0,1.4598]
[1753881779970,0.9117,3764.1,3763.5,2.1192]
[1753881780270,0.53138,3763.8,3763.5,0.53142]
[1753881780461,5.193288,3764.1,3763.0,21.7196964]
[1753881780661,5.193288,3764.1,3763.0,20.3909764]
[1753881780970,3.764988,3764.1,3763.2,4.90768]
[1753881781163,3.764988,3764.1,3763.2,1.32868]
[1753881781359,2.34,3764.0,3763.7,1.4598]
[1753881781570,3.764988,3764.1,3763.6,3.579]
[1753881781571,4.19539,3763.8,3763.6,3.579]
[1753881781870,0.53138,3763.9,3763.4,0.53143]
[1753881782168,0.53138,3763.9,3763.8,2.3069]
[1753881782361,0.53138,3763.9,3763.8,3.579]
[1753881782675,4.19538,3763.9,3763.8,3.579]
[1753881783065,0.53138,3763.9,3763.8,3.579]
[1753881785366,0.53136,3764.0,3763.8,4.11038]
[1753881785574,3.664,3764.4,3763.2,1.32866]
[1753881785575,0.53133,3764.2,3764.0,2.3069]
[1753881785869,2.76703,3764.2,3764.1,2.3069]
[1753881786066,4.19533,3764.2,3764.1,3.579]
[1753881786271,1.32838,3764.1,3763.5,3.579]
[1753881786465,0.53138,3763.9,3763.6,2.8383]
[1753881786666,0.53139,3763.8,3763.6,0.5314]
[1753881787067,0.53141,3763.6,3763.4,0.53144]
[1753881787368,0.5314,3763.7,3763.6,3.579]
[1753881787565,2.8714,3763.7,3763.6,2.1192]
[1753881787762,3.664,3763.4,3763.3,3.579]
[1753881789072,2.34,3763.6,3763.0,3.579]
[1753881789268,3.664,3763.6,3763.0,22.453]
[1753881789668,3.664,3763.6,3763.0,22.98449]
[1753881790173,0.53145,3763.4,3763.2,0.53146]
[1753881790367,1.85545,3763.4,3763.3,0.8471]
[1753881790568,1.85545,3763.4,3763.3,6.0256]
[1753881790768,4.296418,3763.5,3763.4,4.1518]
[1753881790969,4.296418,3763.5,3763.4,6.0256]
[1753881791372,10.481518,3763.5,3763.4,6.0256]
[1753881791878,10.481518,3763.5,3763.4,3.9064]
[1753881792076,9.053218,3763.5,3763.4,6.0256]
[1753881792377,5.265488,3763.5,3763.4,6.0256]
[1753881792676,3.764988,3763.5,3763.4,6.0256]
[1753881794280,1.55204,3763.4,3763.3,2.4466]
[1753881794476,6.1851,3763.4,3763.3,3.9064]
[1753881794776,6.1851,3763.4,3763.3,6.0256]
[1753881795179,3.05258,3763.1,3763.0,1.5144]
[1753881795377,6.71658,3763.1,3763.0,24.8986]
[1753881796271,6.71658,3763.1,3763.0,19.8052]
[1753881796473,6.71658,3763.1,3763.0,18.873]
[1753881796676,6.71658,3763.1,3763.0,24.8986]
[1753881797481,6.71658,3763.1,3763.0,22.1667]
[1753881797681,6.71658,3763.1,3763.0,18.873]
[1753881798677,0.53154,3762.7,3762.6,2.1192]
[1753881798887,3.8451,3762.5,3762.4,6.55717]
[1753881799187,3.8451,3762.5,3762.4,25.43017]
[1753881799388,6.1851,3762.5,3762.4,19.8146]
[1753881799590,6.1851,3762.3,3762.2,2.99280589]
[1753881799782,6.1851,3762.3,3762.2,0.01860589]
[1753881800387,50.750088,3762.3,3762.2,0.01860589]
[1753881801388,50.750088,3762.3,3761.8,0.72837172]
[1753881801389,6.1851,3761.9,3761.8,6.22231172]
[1753881801588,0.5742,3761.9,3761.8,6.22231172]
[1753881801787,3.764988,3762.3,3762.1,1.505]
[1753881801987,3.764988,3762.3,3762.2,6.0256]
[1753881802187,6.286088,3762.3,3762.2,6.0256]
[1753881802385,3.764988,3762.3,3761.9,2.4466]
[1753881802581,6.589488,3762.3,3762.2,6.0256]
[1753881802787,3.764988,3762.3,3762.2,23.96906093]
[1753881803186,3.764988,3762.3,3762.2,4.11061]
[1753881803693,3.764988,3762.3,3762.2,22.98361]
[1753881804586,3.764988,3762.3,3762.2,4.11061]
[1753881804785,3.764988,3762.3,3762.2,22.98361]
[1753881805591,3.764988,3762.3,3762.2,25.43021]
[1753881805791,4.339188,3762.3,3762.2,25.43021]
[1753881805992,8.521788,3762.3,3762.2,25.43121]
[1753881806191,6.286088,3762.3,3762.2,18.873]
[1753881806489,6.286088,3762.3,3762.2,19.4458]
[1753881806689,7.197788,3762.3,3762.2,24.8986]
[1753881806996,9.950088,3762.3,3762.2,22.8986]
[1753881807189,3.764988,3762.3,3762.2,22.8986]
[1753881807892,9.844988,3762.3,3762.2,22.8986]
[1753881808092,9.844988,3762.3,3762.1,0.53161]
[1753881808294,6.173188,3762.3,3762.2,18.873]
[1753881808495,6.173188,3762.3,3762.2,25.1506]
[1753881808691,6.173188,3762.3,3762.2,19.4748]
[1753881808897,9.844988,3762.3,3762.2,18.873]
[1753881809097,2.4082,3761.9,3761.8,0.72838172]
[1753881809394,6.08,3761.9,3761.8,19.60138172]
[1753881810284,10.376638,3761.9,3761.8,19.06971172]
[1753881810684,9.844988,3761.9,3761.8,19.06971172]
[1753881811598,11.36104893,3761.9,3761.8,0.19671172]
[1753881812306,6.08,3761.1,3761.0,25.68338]
[1753881812486,6.08,3761.1,3761.0,0.53178]
[1753881812694,6.08,3761.1,3761.0,4.57098]
[1753881812994,6.08,3761.1,3761.0,6.80938]
[1753881813396,6.08,3761.1,3761.0,0.53178]
[1753881813589,6.08,3761.1,3760.9,0.53178]
[1753881813786,4.7215,3761.0,3760.8,18.874]
[1753881813993,6.08,3760.9,3760.7,0.53181]
[1753881814290,6.08,3760.5,3760.4,55.09735]
[1753881814593,0.8733,3760.5,3760.4,0.53185]
[1753881814795,2.2318,3760.5,3760.4,0.53185]
[1753881815300,5.996788,3760.5,3760.4,0.53185]
[1753881816188,3.764988,3760.5,3760.4,2.98395]
[1753881816489,1.628078,3760.5,3760.4,5.84841093]
[1753881816690,1.628078,3760.5,3760.3,18.875]
[1753881816691,1.44,3761.5,3760.1,1.32975]
[1753881816892,2.7985,3760.7,3760.4,0.89]
[1753881817091,2.7985,3760.7,3760.1,2.67815]
[1753881817092,0.8733,3760.6,3760.5,0.53185]
[1753881817303,0.8733,3760.6,3759.8,0.19681636]
[1753881817304,0.8733,3760.6,3760.2,0.53188]
[1753881817493,0.8733,3760.4,3760.2,0.53188]
[1753881817687,0.5318,3760.9,3760.5,0.53184]
[1753881817888,1.51606093,3761.0,3759.8,0.19681636]
[1753881818090,0.53192,3760.1,3759.8,0.72875636]
[1753881818291,3.6718,3759.9,3759.8,0.19681636]
[1753881818896,8.6718,3759.9,3759.8,0.19681636]
[1753881819096,3.6718,3759.9,3759.8,0.19681636]
[1753881820397,7.436788,3759.9,3759.8,0.19681636]
[1753881821594,3.764988,3759.9,3759.8,3.99731636]
[1753881822001,7.436788,3759.9,3759.8,3.99731636]
[1753881822197,7.436788,3759.9,3759.8,0.19681636]
[1753881825604,3.6718,3759.3,3759.2,0.01862074]
[1753881826102,44.4718,3759.3,3759.2,0.01862074]
[1753881826299,3.6718,3758.5,3758.3,0.53216]
[1753881826496,2.7985,3758.5,3758.3,4.33265]
[1753881826700,2.7985,3758.5,3758.4,3.8005]
[1753881827002,0.53213,3758.6,3758.1,32.804]
[1753881827003,0.53217,3758.2,3758.1,32.804]
[1753881827199,2.7985,3758.2,3758.1,51.685]
[1753881827398,2.7985,3758.2,3758.1,54.5955]
[1753881827600,2.7985,3758.2,3758.1,51.685]
[1753881828203,2.7985,3758.0,3757.9,2.4521]
[1753881828604,4.5663,3758.4,3758.0,1.3484]
[1753881828802,6.0063,3758.4,3758.2,1.5621]
[1753881829105,2.7985,3758.3,3758.2,3.8005]
[1753881829302,2.7985,3758.2,3758.1,0.89]
[1753881829498,3.2078,3758.4,3757.8,0.19692111]
[1753881829702,1.51606093,3757.9,3757.8,0.19692111]
[1753881829905,3.74,3758.0,3757.8,0.19692111]
[1753881830207,5.32169655,3757.9,3757.8,0.19692111]
[1753881830407,3.764988,3757.9,3757.8,0.72915111]
[1753881830906,3.764988,3757.9,3757.8,19.61315111]
[1753881831303,3.764988,3757.9,3757.8,21.12921204]
[1753881831509,3.2078,3758.8,3758.7,0.5321]
[1753881831810,0.5321,3758.7,3758.5,18.886]
[1753881832006,3.7399,3758.8,3758.5,18.886]
[1753881832203,0.53213,3758.6,3758.2,0.53217]
[1753881832519,3.2078,3758.3,3758.0,18.886]
[1753881832801,3.2078,3758.3,3758.1,0.53219]
[1753881834511,3.2078,3758.3,3758.0,18.886]
[1753881834815,6.972788,3758.3,3758.1,0.53218]
[1753881835015,6.972788,3758.3,3758.0,19.41819]
[1753881835219,6.972788,3758.3,3758.2,0.53217]
[1753881835520,6.972788,3758.3,3757.9,18.886]
[1753881835724,6.972788,3758.3,3758.0,0.5322]
[1753881836014,0.53221,3758.0,3757.8,19.08392111]
[1753881836220,3.2078,3757.9,3757.8,19.08392111]
[1753881836918,3.2078,3757.9,3757.8,0.19692111]
[1753881838715,8.52999221,3757.9,3757.8,0.19692111]
[1753881839109,3.2078,3757.9,3757.8,0.19692111]
[1753881839415,8.52999221,3757.9,3757.8,0.19692111]
[1753881840311,3.2078,3757.9,3757.8,0.19692111]
[1753881840518,6.972788,3757.9,3757.8,0.19692111]
[1753881841116,7.81503104,3757.9,3757.8,0.19692111]
[1753881842619,3.764988,3757.9,3757.8,0.19692111]
[1753881844926,3.764988,3757.9,3757.8,5.19692111]
[1753881846217,0.30435,3757.9,3757.8,10.51911332]
[1753881846416,3.2078,3758.8,3757.8,10.51911332]
[1753881846617,3.2078,3758.8,3758.7,0.5321]
[1753881846925,4.05251579,3758.8,3757.9,31.935]
[1753881847118,0.53215,3758.4,3758.1,0.53218]
[1753881847426,0.53216,3758.4,3758.1,0.53219]
[1753881847629,0.53217,3758.3,3758.0,19.4222]
[1753881847823,3.2078,3758.8,3758.0,18.89]
[1753881848023,0.84556354,3758.7,3758.0,18.89]
[1753881848221,0.84556354,3758.6,3758.0,18.89]
[1753881848424,0.84556354,3758.5,3758.1,18.889]
[1753881848934,0.53222,3757.9,3757.8,0.19692111]
[1753881849124,0.53221,3758.0,3757.8,0.19692111]
[1753881849324,0.53219,3758.1,3757.9,0.53222]
[1753881849530,0.53221,3758.0,3757.8,0.19692111]
[1753881850226,0.84674417,3757.9,3757.8,0.19692111]
[1753881850529,4.61173217,3757.9,3757.8,0.19692111]
[1753881851330,3.764988,3757.9,3757.8,0.19692111]
[1753881851630,0.95232452,3758.6,3758.2,0.53217]
[1753881851830,0.53215,3758.4,3758.1,0.53218]
[1753881852132,0.8470865,3758.3,3758.1,0.53218]
[1753881852330,0.53214,3758.5,3757.8,0.19692111]
[1753881852331,0.5322,3758.1,3757.9,18.888]
[1753881852626,0.5322,3758.0,3757.8,0.19692111]
[1753881853326,0.84233736,3757.9,3757.8,0.19692111]
[1753881853527,4.60732536,3757.9,3757.8,0.19692111]
[1753881853735,0.95232452,3758.6,3758.4,0.53215]
[1753881853926,4.16012452,3758.8,3758.6,0.53211]
[1753881854625,3.2078,3758.8,3758.6,19.41911]
[1753881854826,3.73989,3758.8,3758.6,18.887]
[1753881855129,0.53217,3758.2,3757.9,0.53221]
[1753881855432,3.2078,3758.4,3757.9,0.53221]
[1753881855735,3.2078,3758.4,3757.8,0.19692111]
[1753881855923,4.16012452,3759.0,3758.4,0.53215]
[1753881856125,3.2078,3759.0,3758.3,20.40306093]
[1753881856331,0.53207,3758.9,3758.3,18.887]
[1753881856626,2.77549047,3759.0,3758.8,0.53209]
[1753881856834,2.77549047,3759.0,3758.8,2.04815093]
[1753881857030,2.77549047,3759.0,3758.9,18.886]
[1753881858323,2.77549047,3759.0,3758.2,3.2078]
[1753881858324,0.5321,3758.8,3758.2,3.2078]
[1753881858529,0.53212,3758.7,3758.3,19.41816]
[1753881858934,0.53214,3758.5,3758.3,18.886]
[1753881859226,0.53212,3758.6,3758.3,18.886]
[1753881859436,0.53211,3758.7,3758.3,19.41815]
[1753881859635,0.53213,3758.6,3758.3,18.886]
[1753881860134,0.53211,3758.7,3758.3,0.53215]
[1753881860435,4.297118,3758.5,3758.2,3.2078]
[1753881861237,0.53217,3758.3,3757.9,18.884]
[1753881861628,0.53219,3758.2,3757.9,18.884]
[1753881861828,0.5322,3758.1,3757.9,18.884]
[1753881862433,0.53221,3758.0,3757.8,0.19692111]
[1753881862629,0.53221,3758.0,3757.9,18.884]
[1753881863036,0.53219,3758.1,3757.9,18.884]
[1753881863335,3.2078,3758.2,3757.9,18.884]
[1753881863943,0.53219,3758.1,3757.9,18.884]
[1753881864438,0.53222,3757.9,3757.8,0.19692111]
[1753881865234,0.5322,3758.0,3757.8,0.19692111]
[1753881865529,3.764988,3757.9,3757.8,0.19692111]
[1753881868579,7.518988,3757.9,3757.8,0.19692111]
[1753881869139,1.33058,3757.8,3757.0,0.53233]
[1753881869339,3.754,3757.4,3757.2,2.99411]
[1753881869643,3.754,3757.4,3757.3,2.6587]
[1753881869942,3.754,3757.4,3757.3,1.551]
[1753881870235,3.74008,3757.5,3757.0,18.884]
[1753881870236,3.2078,3757.5,3757.4,3.19099]
[1753881870438,6.9618,3757.5,3757.4,3.19099]
[1753881870640,6.9618,3757.5,3757.4,2.6587]
[1753881870843,3.2078,3757.5,3757.4,2.6587]